fUSD/lending_fUSD_20260617
["ID","MTS","AMOUNT","RATE_DAILY","PERIOD"]
[425324462,1781696546000,-150.0,0.00027421,7]
[425324464,1781696546000,-150.0,0.00027433,7]
[425324467,1781696546000,-150.0,0.0002744,7]
[425324461,1781696546000,-150.0,0.00027409,7]
[425324468,1781696546000,-150.0,0.00027448,7]
[425324465,1781696546000,-150.0,0.00027433,7]
[425324466,1781696546000,-616.09402875,0.00027433,7]
[425324470,1781696546000,-201.61012856,0.00027464,7]
[425324478,1781696546000,-150.0,0.000275,7]
[425324469,1781696546000,-350.06,0.0002745,7]
[425324472,1781696546000,-150.0,0.00027467,7]
[425324473,1781696546000,-150.0,0.00027471,7]
[425324497,1781696546000,-616.09402875,0.00027616,7]
[425324501,1781696546000,-150.0,0.00027636,7]
[425324499,1781696546000,-150.0,0.00027626,7]
[425324520,1781696546000,-288.5,0.00027749,30]
[425324526,1781696546000,-150.0,0.00027768,7]
[425324519,1781696546000,-1107.09,0.00027749,30]
[425324525,1781696546000,-201.61012856,0.00027768,7]
[425324527,1781696546000,-150.0,0.00027768,7]
[425324529,1781696546000,-779.17888166,0.00027779,2]
[425324530,1781696546000,-150.0,0.00027782,7]
[425324532,1781696546000,-150.0,0.00027797,7]
[425324523,1781696546000,-150.0,0.0002775,7]
[425324531,1781696546000,-213.625,0.00027794,17]
[425324536,1781696546000,-150.0,0.00027813,7]
[425324535,1781696546000,-150.0,0.00027801,7]
[425324534,1781696546000,-616.09402875,0.00027798,7]
[425324533,1781696546000,-201.61012856,0.00027798,7]
[425324538,1781696546000,-616.09402875,0.00027829,7]
[425324539,1781696546000,-150.0,0.00027835,7]
[425324495,1781696546000,-150.0,0.000276,7]
[425324537,1781696546000,-201.61012856,0.00027829,7]
[425324528,1781696546000,-616.09402875,0.00027768,7]
[425324522,1781696546000,-2958.52,0.00027749,30]
[425324540,1781696546000,-150.0,0.0002784,7]
[425324524,1781696546000,-150.0,0.00027753,7]
[425324521,1781696546000,-233.37,0.00027749,2]
[425324500,1781696546000,-150.0,0.00027634,7]
[425324506,1781696546000,-150.0,0.00027667,7]
[425324502,1781696546000,-201.61012856,0.00027646,7]
[425324507,1781696546000,-201.61012856,0.00027676,7]
[425324503,1781696546000,-616.09402875,0.00027646,7]
[425324504,1781696546000,-150.0,0.00027657,7]
[425324505,1781696546000,-150.0,0.00027666,7]
[425324509,1781696546000,-150.0,0.00027688,7]
[425324498,1781696546000,-150.0,0.00027622,7]
[425324508,1781696546000,-616.09402875,0.00027676,7]
[425324512,1781696546000,-616.09402875,0.00027707,7]
[425324516,1781696546000,-201.61012856,0.00027737,7]
[425324514,1781696546000,-150.0,0.00027719,7]
[425324513,1781696546000,-150.0,0.0002771,7]
[425324518,1781696546000,-150.0,0.00027744,7]
[425324515,1781696546000,-150.0,0.00027734,7]
[425324511,1781696546000,-201.61012856,0.00027707,7]
[425324510,1781696546000,-150.0,0.00027701,7]
[425324517,1781696546000,-616.09402875,0.00027737,7]
[425324566,1781696547000,-150.0,0.00027971,7]
[425324560,1781696547000,-150.0,0.00027937,7]
[425324563,1781696547000,-150.0,0.00027959,7]
[425324564,1781696547000,-150.0,0.00027968,7]
[425324565,1781696547000,-150.0,0.00027968,7]
[425324567,1781696547000,-201.61012856,0.00027981,7]
[425324562,1781696547000,-616.09402875,0.0002795,7]
[425324572,1781696547000,-339.1213405,0.00028,2]
[425324569,1781696547000,-150.0,0.00027999,7]
[425324570,1781696547000,-427.187189,0.00027999,120]
[425324571,1781696547000,-500.0,0.00027999,120]
[425324573,1781696547000,-21820.52483151,0.00028,2]
[425324575,1781696547000,-463.142014,0.00028,2]
[425324574,1781696547000,-205469.58412799,0.00028,2]
[425324576,1781696547000,-150.0,0.00028002,7]
[425324561,1781696547000,-201.61012856,0.0002795,7]
[425324568,1781696547000,-616.09402875,0.00027981,7]
[425324559,1781696547000,-150.0,0.00027935,7]
[425324553,1781696547000,-616.09402875,0.00027889,7]
[425324558,1781696547000,-150.0,0.00027928,7]
[425324577,1781696547000,-201.61012856,0.00028011,7]
[425324545,1781696547000,-155.58,0.00027847,2]
[425324543,1781696547000,-887.56,0.00027847,30]
[425324546,1781696547000,-150.0,0.00027851,7]
[425324541,1781696547000,-150.0,0.00027844,7]
[425324544,1781696547000,-332.13,0.00027847,30]
[425324542,1781696547000,-173.11,0.00027847,30]
[425324557,1781696547000,-616.09402875,0.0002792,7]
[425324547,1781696547000,-201.61012856,0.00027859,7]
[425324550,1781696547000,-150.0,0.00027875,7]
[425324552,1781696547000,-201.61012856,0.00027889,7]
[425324549,1781696547000,-150.0,0.00027868,7]
[425324548,1781696547000,-616.09402875,0.00027859,7]
[425324551,1781696547000,-150.0,0.00027884,7]
[425324556,1781696547000,-201.61012856,0.0002792,7]
[425324555,1781696547000,-150.0,0.00027906,7]
[425324554,1781696547000,-150.0,0.00027902,7]
[425324578,1781696547000,-616.09402875,0.00028011,7]
[425324616,1781696547000,-616.09402875,0.00028194,30]
[425324581,1781696547000,-150.0,0.00028035,7]
[425324603,1781696547000,-201.61012856,0.00028133,30]
[425324595,1781696547000,-150.0,0.00028102,30]
[425324598,1781696547000,-150.0,0.00028102,30]
[425324605,1781696547000,-150.0,0.00028136,30]
[425324606,1781696547000,-150.0,0.00028146,30]
[425324610,1781696547000,-616.09402875,0.00028163,30]
[425324607,1781696547000,-350.06,0.00028148,30]
[425324602,1781696547000,-150.0,0.00028123,30]
[425324608,1781696547000,-150.0,0.00028154,30]
[425324609,1781696547000,-201.61012856,0.00028163,30]
[425324615,1781696547000,-201.61012856,0.00028194,30]
[425324611,1781696547000,-150.0,0.00028169,30]
[425324613,1781696547000,-150.0,0.00028185,30]
[425324618,1781696547000,-3516.96981925,0.00028204,2]
[425324617,1781696547000,-150.0,0.00028203,30]
[425324579,1781696547000,-150.0,0.00028015,7]
[425324614,1781696547000,-150.0,0.0002819,30]
[425324597,1781696547000,-201.61012856,0.00028102,30]
[425324612,1781696547000,-150.0,0.00028174,30]
[425324599,1781696547000,-150.0,0.00028102,30]
[425324582,1781696547000,-2000.0,0.00028037,30]
[425324601,1781696547000,-273.0,0.00028112,2]
[425324586,1781696547000,-201.61012856,0.00028041,7]
[425324583,1781696547000,-2000.0,0.00028037,30]
[425324580,1781696547000,-150.0,0.0002803,7]
[425324585,1781696547000,-2053.0,0.00028037,30]
[425324587,1781696547000,-616.09402875,0.00028041,7]
[425324588,1781696547000,-150.0,0.00028059,7]
[425324584,1781696547000,-2000.0,0.00028037,30]
[425324589,1781696547000,-150.0,0.00028061,7]
[425324590,1781696547000,-150.0,0.00028066,7]
[425324594,1781696547000,-150.0,0.00028092,30]
[425324591,1781696547000,-150.0,0.00028069,7]
[425324593,1781696547000,-616.09402875,0.00028072,30]
[425324596,1781696547000,-150.0,0.00028102,30]
[425324592,1781696547000,-201.61012856,0.00028072,30]
[425324604,1781696547000,-616.09402875,0.00028133,30]
[425324600,1781696547000,-616.09402875,0.00028102,30]
[425324646,1781696548000,-317.94834837,0.00028281,7]
[425324649,1781696548000,-440.17246897,0.00028281,7]
[425324656,1781696548000,-150.0,0.00028309,30]
[425324648,1781696548000,-346.56493133,0.00028281,7]
[425324645,1781696548000,-224.42460292,0.00028281,7]
[425324642,1781696548000,-206.38271163,0.00028275,7]
[425324641,1781696548000,-329.17724446,0.00028275,7]
[425324655,1781696548000,-150.0,0.00028303,30]
[425324650,1781696548000,-344.80533432,0.00028281,7]
[425324657,1781696548000,-201.61012856,0.00028315,30]
[425324660,1781696548000,-1082.594141,0.00028336,2]
[425324658,1781696548000,-616.09402875,0.00028315,30]
[425324654,1781696548000,-616.09402875,0.00028285,30]
[425324652,1781696548000,-150.0,0.00028282,30]
[425324653,1781696548000,-201.61012856,0.00028285,30]
[425324659,1781696548000,-150.0,0.0002832,30]
[425324661,1781696548000,-150.0,0.00028336,30]
[425324664,1781696548000,-616.09402875,0.00028346,30]
[425324663,1781696548000,-201.61012856,0.00028346,30]
[425324643,1781696548000,-150.0,0.00028277,30]
[425324651,1781696548000,-347.32483402,0.00028281,7]
[425324644,1781696548000,-150.0,0.00028278,30]
[425324625,1781696548000,-150.0,0.00028247,30]
[425324647,1781696548000,-346.72197386,0.00028281,7]
[425324621,1781696548000,-616.09402875,0.00028224,30]
[425324619,1781696548000,-150.0,0.00028216,30]
[425324622,1781696548000,-233.37,0.00028224,7]
[425324620,1781696548000,-201.61012856,0.00028224,30]
[425324666,1781696548000,-150.0,0.0002837,30]
[425324626,1781696548000,-201.61012856,0.00028254,30]
[425324624,1781696548000,-150.0,0.00028236,30]
[425324623,1781696548000,-150.0,0.00028233,30]
[425324628,1781696548000,-1030.0,0.00028262,2]
[425324627,1781696548000,-616.09402875,0.00028254,30]
[425324630,1781696548000,-150.0,0.0002827,30]
[425324632,1781696548000,-232.47914457,0.00028275,7]
[425324633,1781696548000,-211.1129321,0.00028275,7]
[425324629,1781696548000,-663.5190383,0.00028262,2]
[425324634,1781696548000,-368.01344759,0.00028275,7]
[425324631,1781696548000,-232.52584202,0.00028275,7]
[425324635,1781696548000,-311.28547614,0.00028275,2]
[425324636,1781696548000,-363.84752795,0.00028275,7]
[425324638,1781696548000,-207.91672601,0.00028275,7]
[425324637,1781696548000,-353.96758479,0.00028275,7]
[425324640,1781696548000,-237.4914839,0.00028275,7]
[425324639,1781696548000,-344.13469422,0.00028275,7]
[425324665,1781696548000,-150.0,0.00028364,30]
[425324662,1781696548000,-150.0,0.0002834,30]
[425324668,1781696548000,-201.61012856,0.00028376,30]
[425324695,1781696548000,-150.0,0.00028504,30]
[425324696,1781696548000,-151.0,0.00028513,7]
[425324698,1781696548000,-201.61012856,0.00028528,30]
[425324699,1781696548000,-616.09402875,0.00028528,30]
[425324701,1781696548000,-150.0,0.00028539,30]
[425324697,1781696548000,-150.0,0.00028527,30]
[425324700,1781696548000,-150.0,0.00028537,30]
[425324702,1781696548000,-150.0,0.00028558,30]
[425324704,1781696548000,-616.09402875,0.00028558,30]
[425324706,1781696548000,-1265.95,0.00028582,120]
[425324705,1781696548000,-150.0,0.00028571,30]
[425324707,1781696548000,-1265.95,0.00028582,120]
[425324708,1781696548000,-500.0,0.00028582,120]
[425324711,1781696548000,-500.0,0.00028582,120]
[425324710,1781696548000,-579.22758725,0.00028582,120]
[425324712,1781696548000,-500.0,0.00028582,120]
[425324713,1781696548000,-500.0,0.00028582,120]
[425324709,1781696548000,-500.0,0.00028582,120]
[425324714,1781696548000,-395.67943243,0.00028582,120]
[425324715,1781696548000,-212.623813,0.00028582,7]
[425324667,1781696548000,-150.0,0.00028371,30]
[425324694,1781696548000,-616.09402875,0.00028498,30]
[425324690,1781696548000,-150.0,0.00028495,30]
[425324703,1781696548000,-201.61012856,0.00028558,30]
[425324692,1781696548000,-150.0,0.00028497,30]
[425324671,1781696548000,-56938.93804346,0.000284,2]
[425324693,1781696548000,-201.61012856,0.00028498,30]
[425324669,1781696548000,-616.09402875,0.00028376,30]
[425324670,1781696548000,-150.0,0.00028389,30]
[425324675,1781696548000,-616.09402875,0.00028406,30]
[425324674,1781696548000,-201.61012856,0.00028406,30]
[425324672,1781696548000,-150.0,0.00028402,30]
[425324678,1781696548000,-201.61012856,0.00028437,30]
[425324677,1781696548000,-150.0,0.00028433,30]
[425324676,1781696548000,-150.0,0.00028408,30]
[425324680,1781696548000,-150.0,0.00028437,30]
[425324673,1781696548000,-150.0,0.00028403,30]
[425324681,1781696548000,-616.09402875,0.00028437,30]
[425324683,1781696548000,-150.0,0.00028451,30]
[425324682,1781696548000,-857.0868914,0.0002845,2]
[425324684,1781696548000,-150.0,0.00028464,30]
[425324685,1781696548000,-201.61012856,0.00028467,30]
[425324686,1781696548000,-616.09402875,0.00028467,30]
[425324687,1781696548000,-150.0,0.0002847,30]
[425324688,1781696548000,-1642.0703,0.00028483,2]
[425324679,1781696548000,-150.0,0.00028437,30]
[425324691,1781696548000,-150.0,0.00028495,30]
[425324689,1781696548000,-430.81621874,0.00028487,2]
[425324743,1781696549000,-151.0,0.00028583,7]
[425324754,1781696549000,-500.0,0.00028583,2]
[425324747,1781696549000,-500.0,0.00028583,2]
[425324748,1781696549000,-500.0,0.00028583,2]
[425324751,1781696549000,-500.0,0.00028583,2]
[425324745,1781696549000,-151.0,0.00028583,7]
[425324753,1781696549000,-500.0,0.00028583,2]
[425324746,1781696549000,-151.0,0.00028583,7]
[425324750,1781696549000,-500.0,0.00028583,2]
[425324756,1781696549000,-500.0,0.00028583,2]
[425324749,1781696549000,-500.0,0.00028583,2]
[425324763,1781696549000,-500.0,0.00028583,2]
[425324755,1781696549000,-500.0,0.00028583,2]
[425324758,1781696549000,-500.0,0.00028583,2]
[425324757,1781696549000,-500.0,0.00028583,2]
[425324765,1781696549000,-500.0,0.00028583,2]
[425324760,1781696549000,-500.0,0.00028583,2]
[425324766,1781696549000,-500.0,0.00028583,2]
[425324762,1781696549000,-500.0,0.00028583,2]
[425324761,1781696549000,-500.0,0.00028583,2]
[425324759,1781696549000,-500.0,0.00028583,2]
[425324764,1781696549000,-500.0,0.00028583,2]
[425324741,1781696549000,-151.0,0.00028583,7]
[425324752,1781696549000,-500.0,0.00028583,2]
[425324740,1781696549000,-151.0,0.00028583,7]
[425324719,1781696549000,-550.187612,0.00028582,7]
[425324744,1781696549000,-151.0,0.00028583,7]
[425324716,1781696549000,-212.623813,0.00028582,7]
[425324717,1781696549000,-212.623813,0.00028582,7]
[425324718,1781696549000,-212.623813,0.00028582,7]
[425324723,1781696549000,-150.0,0.00028582,30]
[425324722,1781696549000,-550.187612,0.00028582,7]
[425324721,1781696549000,-550.187612,0.00028582,7]
[425324724,1781696549000,-90647.9728721,0.00028583,2]
[425324720,1781696549000,-550.187612,0.00028582,7]
[425324726,1781696549000,-3146.1168582,0.00028583,2]
[425324725,1781696549000,-232387.12296,0.00028583,2]
[425324734,1781696549000,-597.079496,0.00028583,7]
[425324727,1781696549000,-151.0,0.00028583,7]
[425324732,1781696549000,-597.079496,0.00028583,7]
[425324730,1781696549000,-151.0,0.00028583,7]
[425324731,1781696549000,-153.02292,0.00028583,7]
[425324729,1781696549000,-154.068868,0.00028583,7]
[425324728,1781696549000,-151.0,0.00028583,7]
[425324733,1781696549000,-151.0,0.00028583,7]
[425324736,1781696549000,-597.079496,0.00028583,7]
[425324735,1781696549000,-151.0,0.00028583,7]
[425324739,1781696549000,-151.0,0.00028583,7]
[425324738,1781696549000,-597.079496,0.00028583,7]
[425324737,1781696549000,-270.343244,0.00028583,7]
[425324742,1781696549000,-151.0,0.00028583,7]
[425324768,1781696549000,-500.0,0.00028583,2]
[425324770,1781696549000,-500.0,0.00028583,2]
[425324767,1781696549000,-500.0,0.00028583,2]
[425324798,1781696549000,-500.0,0.00028583,2]
[425324797,1781696549000,-500.0,0.00028583,2]
[425324801,1781696549000,-500.0,0.00028583,2]
[425324800,1781696549000,-500.0,0.00028583,2]
[425324802,1781696549000,-500.0,0.00028583,2]
[425324803,1781696549000,-500.0,0.00028583,2]
[425324804,1781696549000,-500.0,0.00028583,2]
[425324808,1781696549000,-500.0,0.00028583,2]
[425324806,1781696549000,-500.0,0.00028583,2]
[425324807,1781696549000,-500.0,0.00028583,2]
[425324805,1781696549000,-500.0,0.00028583,2]
[425324809,1781696549000,-500.0,0.00028583,2]
[425324811,1781696549000,-453.145406,0.00028583,2]
[425324810,1781696549000,-500.0,0.00028583,2]
[425324814,1781696549000,-230.362583,0.00028583,7]
[425324813,1781696549000,-230.362583,0.00028583,7]
[425324812,1781696549000,-230.362583,0.00028583,7]
[425324815,1781696549000,-230.362583,0.00028583,7]
[425324817,1781696549000,-201.61012856,0.00028589,30]
[425324820,1781696549000,-150.0,0.00028604,30]
[425324818,1781696549000,-616.09402875,0.00028589,30]
[425324816,1781696549000,-150.0,0.00028589,30]
[425324819,1781696549000,-150.0,0.00028604,30]
[425324799,1781696549000,-500.0,0.00028583,2]
[425324796,1781696549000,-500.0,0.00028583,2]
[425324778,1781696549000,-500.0,0.00028583,2]
[425324793,1781696549000,-500.0,0.00028583,2]
[425324795,1781696549000,-500.0,0.00028583,2]
[425324769,1781696549000,-500.0,0.00028583,2]
[425324772,1781696549000,-500.0,0.00028583,2]
[425324777,1781696549000,-500.0,0.00028583,2]
[425324771,1781696549000,-500.0,0.00028583,2]
[425324773,1781696549000,-500.0,0.00028583,2]
[425324775,1781696549000,-500.0,0.00028583,2]
[425324776,1781696549000,-500.0,0.00028583,2]
[425324779,1781696549000,-500.0,0.00028583,2]
[425324783,1781696549000,-500.0,0.00028583,2]
[425324782,1781696549000,-500.0,0.00028583,2]
[425324774,1781696549000,-500.0,0.00028583,2]
[425324787,1781696549000,-500.0,0.00028583,2]
[425324781,1781696549000,-500.0,0.00028583,2]
[425324784,1781696549000,-151.0,0.00028583,7]
[425324785,1781696549000,-500.0,0.00028583,2]
[425324791,1781696549000,-500.0,0.00028583,2]
[425324786,1781696549000,-500.0,0.00028583,2]
[425324788,1781696549000,-500.0,0.00028583,2]
[425324789,1781696549000,-500.0,0.00028583,2]
[425324792,1781696549000,-500.0,0.00028583,2]
[425324790,1781696549000,-500.0,0.00028583,2]
[425324794,1781696549000,-500.0,0.00028583,2]
[425324780,1781696549000,-500.0,0.00028583,2]
[425324853,1781696550000,-150.0,0.00028757,30]
[425324856,1781696550000,-150.0,0.00028771,30]
[425324852,1781696550000,-150.0,0.00028744,30]
[425324855,1781696550000,-201.61012856,0.00028771,30]
[425324847,1781696550000,-150.0,0.00028713,30]
[425324848,1781696550000,-150.0,0.00028713,30]
[425324846,1781696550000,-150.0,0.00028712,30]
[425324845,1781696550000,-616.09402875,0.00028711,30]
[425324858,1781696550000,-150.0,0.00028775,30]
[425324854,1781696550000,-150.0,0.00028771,30]
[425324857,1781696550000,-616.09402875,0.00028771,30]
[425324865,1781696550000,-150.0,0.00028805,30]
[425324862,1781696550000,-150.0,0.000288,30]
[425324861,1781696550000,-5917.04,0.00028791,7]
[425324859,1781696550000,-2214.19,0.00028791,7]
[425324864,1781696550000,-616.09402875,0.00028802,30]
[425324863,1781696550000,-201.61012856,0.00028802,30]
[425324873,1781696550000,-350.06,0.00028846,2]
[425324872,1781696550000,-150.0,0.00028844,30]
[425324867,1781696550000,-150.0,0.00028819,30]
[425324868,1781696550000,-201.61012856,0.00028832,30]
[425324866,1781696550000,-150.0,0.00028806,30]
[425324851,1781696550000,-616.09402875,0.00028741,30]
[425324860,1781696550000,-577.01,0.00028791,7]
[425324844,1781696550000,-201.61012856,0.00028711,30]
[425324832,1781696550000,-200.0,0.00028636,2]
[425324843,1781696550000,-150.0,0.00028704,30]
[425324870,1781696550000,-150.0,0.00028837,30]
[425324821,1781696550000,-150.0,0.00028604,30]
[425324830,1781696550000,-150.0,0.00028626,30]
[425324824,1781696550000,-200.0,0.00028614,2]
[425324825,1781696550000,-200.0,0.00028614,2]
[425324827,1781696550000,-201.61012856,0.00028619,30]
[425324826,1781696550000,-200.0,0.00028615,2]
[425324823,1781696550000,-200.0,0.00028608,2]
[425324829,1781696550000,-150.0,0.0002862,30]
[425324828,1781696550000,-616.09402875,0.00028619,30]
[425324822,1781696550000,-150.0,0.00028604,30]
[425324831,1781696550000,-200.0,0.00028636,2]
[425324839,1781696550000,-201.61012856,0.0002868,30]
[425324835,1781696550000,-616.09402875,0.0002865,30]
[425324834,1781696550000,-201.61012856,0.0002865,30]
[425324838,1781696550000,-150.0,0.00028671,30]
[425324837,1781696550000,-150.0,0.0002867,30]
[425324833,1781696550000,-150.0,0.00028638,30]
[425324840,1781696550000,-616.09402875,0.0002868,30]
[425324836,1781696550000,-150.0,0.00028651,30]
[425324842,1781696550000,-233.37,0.000287,30]
[425324850,1781696550000,-201.61012856,0.00028741,30]
[425324849,1781696550000,-150.0,0.00028738,30]
[425324841,1781696550000,-150.0,0.00028682,30]
[425324869,1781696550000,-616.09402875,0.00028832,30]
[425324871,1781696550000,-150.0,0.00028838,30]
[425324883,1781696550000,-201.61012856,0.00028893,30]
[425324900,1781696550000,-151.0,0.00028958,30]
[425324904,1781696550000,-150.0,0.00028961,30]
[425324901,1781696550000,-184.0,0.00028958,30]
[425324908,1781696550000,-155.0,0.00028971,30]
[425324909,1781696550000,-413.0,0.00028971,30]
[425324911,1781696550000,-153.0,0.00028971,30]
[425324914,1781696550000,-150.0,0.00028975,30]
[425324912,1781696550000,-153.0,0.00028971,30]
[425324915,1781696550000,-201.61012856,0.00028984,30]
[425324907,1781696550000,-332.13,0.00028966,7]
[425324910,1781696550000,-467.0,0.00028971,30]
[425324905,1781696550000,-155.58,0.00028964,7]
[425324913,1781696550000,-150.0,0.00028972,30]
[425324919,1781696550000,-150.0,0.00029,2]
[425324921,1781696550000,-150.0,0.00029,2]
[425324920,1781696550000,-150.0,0.00029,2]
[425324918,1781696550000,-150.0,0.00029,2]
[425324922,1781696550000,-150.0,0.00029,2]
[425324924,1781696550000,-10674.78065005,0.00029,2]
[425324923,1781696550000,-150.0,0.00029,2]
[425324925,1781696550000,-191.80540898,0.00029,2]
[425324926,1781696550000,-188.28168164,0.00029,2]
[425324927,1781696550000,-250.01993717,0.00029,2]
[425324874,1781696550000,-273.0,0.00028862,2]
[425324917,1781696550000,-150.0,0.00028992,30]
[425324903,1781696550000,-235.0,0.00028958,30]
[425324916,1781696550000,-616.09402875,0.00028984,30]
[425324906,1781696550000,-887.56,0.00028966,7]
[425324877,1781696550000,-150.0,0.00028868,30]
[425324899,1781696550000,-154.0,0.00028958,30]
[425324885,1781696550000,-150.0,0.00028899,30]
[425324878,1781696550000,-150.0,0.00028872,30]
[425324875,1781696550000,-201.61012856,0.00028863,30]
[425324881,1781696550000,-2958.52,0.00028879,7]
[425324882,1781696550000,-150.0,0.00028888,30]
[425324880,1781696550000,-288.5,0.00028879,7]
[425324876,1781696550000,-616.09402875,0.00028863,30]
[425324884,1781696550000,-616.09402875,0.00028893,30]
[425324887,1781696550000,-2441.46013088,0.000289,10]
[425324888,1781696550000,-2000.0,0.000289,2]
[425324879,1781696550000,-1107.09,0.00028879,7]
[425324893,1781696550000,-150.0,0.00028927,30]
[425324886,1781696550000,-224.47,0.000289,2]
[425324895,1781696550000,-150.0,0.00028931,30]
[425324890,1781696550000,-150.0,0.00028905,30]
[425324894,1781696550000,-150.0,0.0002893,30]
[425324892,1781696550000,-616.09402875,0.00028923,30]
[425324891,1781696550000,-201.61012856,0.00028923,30]
[425324902,1781696550000,-152.0,0.00028958,30]
[425324896,1781696550000,-150.0,0.00028939,30]
[425324897,1781696550000,-201.61012856,0.00028954,30]
[425324889,1781696550000,-779.17888166,0.00028904,2]
[425324898,1781696550000,-616.09402875,0.00028954,30]
[425324966,1781696551000,-464.95828914,0.00029128,7]
[425324959,1781696551000,-616.09402875,0.00029106,30]
[425324967,1781696551000,-422.22586421,0.00029128,7]
[425324960,1781696551000,-150.0,0.00029116,30]
[425324954,1781696551000,-150.0,0.00029106,30]
[425324957,1781696551000,-201.61012856,0.00029106,30]
[425324961,1781696551000,-3516.96981925,0.00029117,2]
[425324963,1781696551000,-193.2779557,0.00029128,7]
[425324958,1781696551000,-150.0,0.00029106,30]
[425324974,1781696551000,-545.77129192,0.00029128,7]
[425324964,1781696551000,-232.37363627,0.00029128,7]
[425324971,1781696551000,-530.95137719,0.00029128,7]
[425324982,1781696551000,-214.85452329,0.00029134,7]
[425324972,1781696551000,-218.10456732,0.00029128,7]
[425324970,1781696551000,-203.95916624,0.00029128,7]
[425324969,1781696551000,-466.92821421,0.00029128,2]
[425324968,1781696551000,-552.02017138,0.00029128,7]
[425324976,1781696551000,-175.04625116,0.00029128,7]
[425324975,1781696551000,-516.20204134,0.00029128,7]
[425324978,1781696551000,-474.9829678,0.00029128,7]
[425324987,1781696551000,-210.49571628,0.00029134,7]
[425324986,1781696551000,-212.12571429,0.00029134,7]
[425324980,1781696551000,-493.7658667,0.00029128,7]
[425324983,1781696551000,-448.84920585,0.00029134,7]
[425324962,1781696551000,-231.56361806,0.00029128,7]
[425324973,1781696551000,-415.83345203,0.00029128,7]
[425324965,1781696551000,-465.05168403,0.00029128,7]
[425324930,1781696551000,-1153.93392615,0.00029,2]
[425324955,1781696551000,-150.0,0.00029106,30]
[425324977,1781696551000,-247.29295381,0.00029128,7]
[425324929,1781696551000,-4602.261,0.00029,2]
[425324928,1781696551000,-224.47,0.00029,2]
[425324931,1781696551000,-941.19669631,0.00029,2]
[425324941,1781696551000,-150.0,0.00029019,30]
[425324936,1781696551000,-930.0000035,0.00029,2]
[425324932,1781696551000,-930.55983482,0.00029,2]
[425324940,1781696551000,-616.09402875,0.00029015,30]
[425324939,1781696551000,-201.61012856,0.00029015,30]
[425324937,1781696551000,-930.00000017,0.00029,2]
[425324935,1781696551000,-930.00006998,0.00029,2]
[425324933,1781696551000,-930.02799174,0.00029,2]
[425324956,1781696551000,-150.0,0.00029106,30]
[425324934,1781696551000,-930.00139959,0.00029,2]
[425324943,1781696551000,-150.0,0.00029034,30]
[425324953,1781696551000,-224.47,0.000291,2]
[425324945,1781696551000,-201.61012856,0.00029045,30]
[425324942,1781696551000,-150.0,0.00029023,30]
[425324944,1781696551000,-150.0,0.00029039,30]
[425324946,1781696551000,-616.09402875,0.00029045,30]
[425324950,1781696551000,-201.61012856,0.00029076,30]
[425324948,1781696551000,-150.0,0.00029062,30]
[425324949,1781696551000,-150.0,0.00029072,30]
[425324952,1781696551000,-150.0,0.00029085,30]
[425324947,1781696551000,-150.0,0.00029054,30]
[425324951,1781696551000,-616.09402875,0.00029076,30]
[425324938,1781696551000,-150.0,0.00029006,30]